lending/lending_fUSD_20240410
["ID","MTS","AMOUNT","RATE_DAILY","PERIOD"]
[322105792,1712781043272,-208.81131443,0.000219,2]
[322105794,1712781043282,-208.81131443,0.000219,2]
[322105796,1712781043292,-790.9808523,0.000219,2]
[322105798,1712781043302,-250.0,0.00021918,2]
[322105800,1712781043312,-8306.57,0.00021918,2]
[322105802,1712781043322,-250.0,0.00021918,2]
[322105803,1712781043332,-150.0,0.00021918,2]
[322105805,1712781043342,-7712.7,0.00021943,2]
[322105807,1712781043354,-171.06,0.0002197,2]
[322105810,1712781043368,-500.72724174,0.00021996,2]
[322105812,1712781043378,-783.68958544,0.00022,2]
[322105814,1712781043388,-952.17194491,0.00022,2]
[322105816,1712781043400,-562.65039884,0.00022,2]
[322105818,1712781043410,-40051.28369038,0.00022,2]
[322105820,1712781043421,-282.16237035,0.00022,2]
[322105821,1712781043432,-150.0,0.00022,2]
[322105824,1712781043443,-241.09,0.00022009,2]
[322105825,1712781043454,-224.09,0.00022037,2]
[322105827,1712781043465,-20000.0,0.00022149,2]
[322105830,1712781043476,-6152.0,0.00022149,2]
[322105832,1712781043488,-1000.0,0.00022275,2]
[322105834,1712781043499,-180.0,0.00022301,2]
[322105835,1712781043510,-7967.05829759,0.0002235,2]
[322105838,1712781043521,-800.0,0.00022438,2]
[322105840,1712781043532,-203.0,0.00022458,2]
[322105841,1712781043542,-272.832992,0.00022466,2]
[322105843,1712781043553,-6426.42648233,0.000225,2]
[322105845,1712781043563,-150.0,0.000225,2]
[322105847,1712781043574,-62089.45757243,0.00022738,2]
[322105849,1712781043584,-151.0,0.00022778,2]
[322105851,1712781043595,-245.942,0.00022778,2]
[322105853,1712781043608,-160.678,0.00022778,2]
[322105855,1712781043622,-250.0,0.00022778,2]
[322105858,1712781043633,-267.982,0.00022778,2]
[322105860,1712781043644,-151.625,0.00022778,2]
[322105861,1712781043655,-256.0,0.00022778,2]
[322105864,1712781043665,-265.539,0.00022778,2]
[322105865,1712781043676,-250.0,0.00022778,2]
[322105867,1712781043687,-158.37,0.00022778,2]
[322105870,1712781043697,-277.066,0.00022778,2]
[322105871,1712781043707,-243.62,0.00022778,2]
[322105887,1712781043835,-150.002,0.00022778,2]
[322105889,1712781043845,-280.926,0.00022778,2]
[322105891,1712781043858,-1945.0,0.00022778,2]
[322105893,1712781043867,-812.723,0.00022778,2]
[322105895,1712781043876,-439.185,0.00022778,2]
[322105897,1712781043885,-607.0,0.00022778,2]
[322105899,1712781043894,-409.066,0.00022778,2]
[322105901,1712781043903,-1470.0,0.00022778,2]
[322105903,1712781043912,-152.655,0.00022778,2]
[322105905,1712781043921,-3039.0,0.00022778,2]
[322105907,1712781043930,-1140.0,0.00022778,2]
[322105909,1712781043940,-2435.0,0.00022778,2]
[322105911,1712781043949,-1635.0,0.00022778,2]
[322105913,1712781043958,-386.844,0.00022778,2]
[322105915,1712781043967,-442.0,0.00022778,2]
[322105917,1712781043977,-215.0,0.00022778,2]
[322105919,1712781043986,-4796.0,0.00022778,2]
[322105921,1712781043996,-966.0,0.00022778,2]
[322105923,1712781044005,-1376.0,0.00022778,2]
[322105924,1712781044015,-2086.794,0.00022778,2]
[322105927,1712781044024,-12305.81,0.00022778,2]
[322105928,1712781044033,-460.0,0.00022778,2]
[322105930,1712781044042,-2463.0,0.00022778,2]
[322105932,1712781044051,-668.008,0.00022778,2]
[322105934,1712781044061,-2429.629,0.00022778,2]
[322105936,1712781044071,-1052.0,0.00022778,2]
[322105938,1712781044081,-295.832,0.00022778,2]
[322105940,1712781044090,-224.09,0.00022789,2]
[322105942,1712781044099,-7967.05829759,0.00022834,2]
[322105945,1712781044112,-189.122,0.00022867,2]
[322105946,1712781044121,-10000.0,0.00022981,2]
[322105948,1712781044130,-155.0,0.00023,2]
[322105950,1712781044139,-155.0,0.00023,2]
[322105952,1712781044148,-307.07035254,0.00023,2]
[322105954,1712781044158,-300.0,0.00023,3]
[322105956,1712781044167,-150.0,0.00023,2]
[322105958,1712781044176,-522.0,0.00023013,2]
[322105960,1712781044185,-833.34,0.00023196,2]
[322105962,1712781044194,-835.36,0.00023196,2]
[322105965,1712781044205,-531.56,0.00023198,2]
[322105966,1712781044214,-162.27,0.00023198,2]
[322105969,1712781044223,-150.0,0.00023198,2]
[322105970,1712781044233,-150.0,0.00023198,2]
[322105973,1712781044243,-150.0,0.00023198,2]
[322105975,1712781044253,-417.92,0.00023198,2]
[322105976,1712781044262,-417.92,0.00023198,2]
[322105978,1712781044272,-417.92,0.00023198,2]
[322105981,1712781044281,-956.24,0.000232,2]
[322105982,1712781044291,-643.44,0.000232,2]
[322105985,1712781044300,-96405.5517033,0.00023256,2]
[322105986,1712781044310,-167.54,0.00023283,2]
[322105989,1712781044321,-339.02,0.00023288,2]
[322105990,1712781044332,-487.38,0.00023288,2]
[322105993,1712781044341,-1000.0,0.00023288,2]
[322105995,1712781044351,-1000.0,0.00023288,2]
[322105996,1712781044362,-1000.0,0.00023288,2]
[322105998,1712781044371,-1000.0,0.00023288,2]
[322106000,1712781044380,-1000.0,0.00023288,2]
[322106003,1712781044394,-1000.0,0.00023288,2]
[322106005,1712781044403,-1000.0,0.00023288,2]
[322106006,1712781044412,-1000.0,0.00023288,2]
[322106008,1712781044421,-1000.0,0.00023288,2]
[322106010,1712781044431,-1000.0,0.00023288,2]
[322106012,1712781044440,-1000.0,0.00023288,2]
[322106014,1712781044449,-1000.0,0.00023288,2]
[322106017,1712781044462,-1000.0,0.00023288,2]
[322106020,1712781044484,-1000.0,0.00023288,2]
[322106023,1712781044500,-1000.0,0.00023288,2]
[322106026,1712781044520,-1000.0,0.00023288,2]
[322106029,1712781044539,-248.0,0.00023288,2]
[322106032,1712781044554,-272.832992,0.00023288,2]
[322106035,1712781044571,-1335.90738,0.0002329,2]
[322106038,1712781044587,-7967.05829759,0.00023317,2]
[322106041,1712781044605,-10000.0,0.00023475,2]
[322106044,1712781044627,-5000.0,0.000235,2]
[322106046,1712781044645,-6284.69721504,0.000235,2]
[322106049,1712781044664,-150.0,0.000235,2]
[322106053,1712781044684,-224.09,0.00023542,2]
[322106055,1712781044696,-7516.33631739,0.000237,2]
[322106078,1712781044904,-29835.03426133,0.000237,2]
[322106081,1712781044919,-7967.05829759,0.00023801,2]
[322106083,1712781044934,-224.62727988,0.00024,2]
[322106086,1712781044949,-454.58628101,0.00024,2]
[322106089,1712781044964,-2000.0,0.00024,2]
[322106091,1712781044979,-150.0,0.00024,2]
[322106092,1712781044994,-629.13,0.00024105,2]
[322106093,1712781045010,-272.832992,0.0002411,2]
[322106094,1712781045026,-522.0,0.00024246,2]
[322106095,1712781045040,-7967.05829759,0.00024284,2]
[322106096,1712781045056,-224.09,0.00024295,2]
[322106097,1712781045071,-150.0,0.000245,2]
[322106100,1712781045086,-169.87,0.00024524,2]
[322106103,1712781045103,-7712.7,0.00024683,2]
[322106105,1712781045120,-149089.15696195,0.0002469,5]
[322106108,1712781045135,-1000.0,0.0002475,2]
[322106110,1712781045150,-7967.05829759,0.00024768,2]
[322106113,1712781045165,-2223.73711434,0.000248,2]
[322106116,1712781045180,-272.832992,0.00024932,2]
[322106118,1712781045194,-52207.56799123,0.00024983,2]
[322106121,1712781045212,-14349.16571637,0.00024983,2]
[322106124,1712781045230,-1049.700003,0.00024983,2]
[322106127,1712781045248,-450.180002,0.00024983,2]
[322106130,1712781045265,-705.8369005,0.00024983,2]
[322106232,1712781046139,-2281.75607076,0.00020999,2]
[322106234,1712781046149,-903.15318308,0.00022714,2]
[322106236,1712781046158,-7441.8280509,0.00024983,2]
[322106238,1712781046168,-2603.52703539,0.00025,2]
[322106240,1712781046177,-221.089637,0.00025,2]
[322106242,1712781046187,-2844.15403432,0.00025,2]
[322106244,1712781046196,-6256.91811999,0.00025,2]
[322106246,1712781046205,-155.0,0.00025,2]
[322106248,1712781046215,-3460.46774035,0.00025,2]
[322106250,1712781046223,-150.0,0.00025,2]
[322106252,1712781046233,-350.0,0.00025,3]
[322106254,1712781046241,-150.0,0.00025,2]
[322106256,1712781046250,-500.0,0.00025,2]
[322106258,1712781046259,-224.09,0.00025048,2]
[322106261,1712781046269,-16142.93927548,0.000251,2]
[322106264,1712781046278,-3163.8129262,0.000251,2]
[322106267,1712781046287,-7967.05829759,0.00025251,2]
[322106270,1712781046296,-522.0,0.00025479,2]
[322106273,1712781046305,-956.24,0.000257,2]
[322106276,1712781046314,-643.44,0.000257,2]
[322106279,1712781046323,-7967.05829759,0.00025735,2]
[322106282,1712781046333,-272.832992,0.00025753,2]
[322106285,1712781046342,-150.0,0.00025778,2]
[322106288,1712781046351,-150.0,0.00025778,2]
[322106291,1712781046362,-280.0,0.00025778,2]
[322106294,1712781046373,-1945.0,0.00025778,2]
[322106296,1712781046383,-806.0,0.00025778,2]
[322106298,1712781046391,-435.0,0.00025778,2]
[322106300,1712781046401,-607.0,0.00025778,2]
[322106302,1712781046410,-398.0,0.00025778,2]
[322106304,1712781046418,-1457.0,0.00025778,2]
[322106306,1712781046427,-150.0,0.00025778,2]
[322106308,1712781046436,-3039.0,0.00025778,2]
[322106310,1712781046445,-1140.0,0.00025778,2]
[322106312,1712781046455,-858.582,0.00025778,2]
[322106314,1712781046463,-354.0,0.00025778,2]
[322106316,1712781046472,-442.0,0.00025778,2]
[322106318,1712781046481,-214.0,0.00025778,2]
[322106320,1712781046490,-4796.0,0.00025778,2]
[322106322,1712781046499,-966.0,0.00025778,2]
[322106324,1712781046508,-460.0,0.00025778,2]
[322106326,1712781046517,-1096.557,0.00025778,2]
[322106328,1712781046526,-2288.0,0.00025778,2]
[322106330,1712781046535,-1022.276,0.00025778,2]
[322106332,1712781046545,-1335.90737,0.0002579,2]
[322106334,1712781046553,-224.09,0.000258,2]
[322106336,1712781046563,-56003.0056247,0.00025982,2]
[322106338,1712781046572,-35801.7325853,0.00025982,2]
[322106340,1712781046582,-500000.0,0.00026,2]
[322106342,1712781046592,-4228.82111769,0.00026,2]
[322106344,1712781046601,-269.88,0.00026,2]
[322106346,1712781046616,-155.0,0.00026,2]
[322106348,1712781046625,-7967.05829759,0.00026218,2]
[322106350,1712781046636,-60323.67534502,0.000263,2]
[322106352,1712781046646,-629.13,0.00026369,2]
[322106354,1712781046656,-15600.459546,0.00026382,2]
[322106356,1712781046666,-25676.51033638,0.000264,2]
[322106358,1712781046675,-272.832992,0.00026575,2]
[322106360,1712781046685,-522.0,0.00026712,2]
[322106362,1712781046694,-459.93,0.00026825,2]
[322106364,1712781046705,-937.04,0.00026903,2]
[322106366,1712781046715,-1000.0,0.00027,2]
[322106368,1712781046726,-400.0,0.00027,3]
[322106370,1712781046735,-906.94,0.00027133,2]
[322106372,1712781046744,-456.99,0.00027133,2]
[322106374,1712781046754,-411.71,0.00027133,2]
[322106376,1712781046763,-906.94,0.00027133,2]
[322106379,1712781046773,-906.94,0.00027133,2]
[322106381,1712781046783,-411.71,0.00027133,2]
[322106383,1712781046792,-411.71,0.00027133,2]
[322106385,1712781046802,-251.31,0.00027133,2]
[322106387,1712781046811,-411.71,0.00027133,2]
[322106389,1712781046820,-1000.0,0.00027225,2]
[322106391,1712781046828,-1108.11623479,0.00027397,2]
[322106393,1712781046838,-272.832992,0.00027397,2]
[322106395,1712781046847,-151.55,0.00027397,2]
[322106397,1712781046859,-314.39,0.00027397,2]
[322106399,1712781046868,-330.71,0.00027397,2]
[322106401,1712781046877,-151.22,0.00027397,2]
[322106403,1712781046887,-265.739231,0.00027397,7]
[322106405,1712781046896,-265.739231,0.00027397,7]
[322106407,1712781046905,-151.0,0.00027397,7]
[322106409,1712781046914,-5300.14755709,0.000274,2]
[322106411,1712781046923,-5820.06,0.000274,2]
[322106413,1712781046933,-5820.06,0.000274,2]
[322106415,1712781046941,-5820.06,0.000274,2]
[322106417,1712781046950,-5820.06,0.000274,2]
[322106419,1712781046959,-5820.06,0.000274,2]
[322106420,1712781046968,-522.0,0.00027945,2]
[322106421,1712781046977,-23535.94437515,0.00028,2]
[322106422,1712781046986,-470.7188875,0.00028,2]
[322106423,1712781046995,-411.4,0.00028081,2]
[322106424,1712781047004,-1811.98,0.00028081,2]
[322106425,1712781047013,-272.832992,0.00028219,14]
[322106426,1712781047022,-1335.90738,0.0002829,2]
[322106427,1712781047032,-629.13,0.00028633,2]
[322106429,1712781047042,-1945.0,0.00028778,2]
[322106431,1712781047051,-806.0,0.00028778,2]
[322106433,1712781047061,-435.0,0.00028778,2]
[322106435,1712781047070,-604.0,0.00028778,2]
[322106437,1712781047080,-398.0,0.00028778,2]
[322106439,1712781047089,-2186.557,0.00028778,2]
[322106441,1712781047100,-971.368,0.00028778,2]
[322106443,1712781047109,-354.0,0.00028778,2]
[322106445,1712781047118,-442.0,0.00028778,2]
[322106447,1712781047127,-214.0,0.00028778,2]
[322106449,1712781047136,-367.838,0.00028778,2]
[322106451,1712781047146,-179.753,0.00028778,2]
[322106453,1712781047155,-448.668,0.00028778,2]
[322106455,1712781047164,-398.0,0.0002882,2]
[322106457,1712781047173,-6744.92204359,0.00029,2]
[322106459,1712781047182,-12112.77283618,0.00029,2]
[322106461,1712781047192,-450.0,0.00029,3]
[322106463,1712781047201,-956.24,0.00029,2]
[322106465,1712781047210,-643.44,0.00029,2]
[322106467,1712781047220,-150.87,0.00029,2]
[322106469,1712781047229,-150.87,0.00029,2]
[322106471,1712781047238,-150.87,0.00029,2]
[322106473,1712781047247,-150.87,0.00029,2]
[322106475,1712781047257,-150.87,0.00029,2]
[322106477,1712781047266,-150.87,0.00029,2]
[322106479,1712781047275,-150.87,0.00029,2]
[322106481,1712781047285,-150.87,0.00029,2]
[322106483,1712781047294,-150.87,0.00029,2]
[322106485,1712781047303,-150.87,0.00029,2]
[322106487,1712781047312,-150.87,0.00029,2]
[322106489,1712781047321,-150.87,0.00029,2]
[322106491,1712781047331,-150.87,0.00029,2]
[322106493,1712781047340,-150.87,0.00029,2]
[322106495,1712781047349,-150.87,0.00029,2]
[322106497,1712781047360,-150.87,0.00029,2]
[322106499,1712781047371,-150.87,0.00029,2]
[322106501,1712781047380,-150.87,0.00029,2]
[322106503,1712781047390,-150.87,0.00029,2]
[322106505,1712781047403,-150.87,0.00029,2]
[322106508,1712781047413,-150.87,0.00029,2]
[322106509,1712781047422,-150.87,0.00029,2]
[322106511,1712781047431,-150.87,0.00029,2]
[322106514,1712781047441,-150.87,0.00029,2]
[322106516,1712781047450,-150.87,0.00029,2]
[322106518,1712781047459,-524.0,0.00029178,2]
[322106519,1712781047468,-169.87,0.00029428,2]
[322106521,1712781047478,-441.77418907,0.000295,3]
[322106524,1712781047487,-835.6,0.00029642,2]
[322106526,1712781047497,-322.42,0.00029642,2]
[322106527,1712781047506,-417.92,0.00029642,2]
[322106530,1712781047516,-179.88,0.00029642,2]
[322106532,1712781047525,-417.92,0.00029642,2]
[322106533,1712781047535,-162.62,0.00029642,2]
[322106535,1712781047544,-162.27,0.00029642,2]
[322106537,1712781047554,-417.92,0.00029642,2]
[322106540,1712781047564,-312.89,0.00029642,2]
[322106541,1712781047574,-150.0,0.00029642,2]
[322106544,1712781047583,-835.6,0.00029642,2]
[322106546,1712781047593,-162.27,0.00029642,2]
[322106548,1712781047602,-150.0,0.00029642,2]
[322106550,1712781047614,-417.92,0.00029642,2]
[322106551,1712781047626,-234.81,0.00029642,2]
[322106553,1712781047635,-162.27,0.00029642,2]
[322106555,1712781047645,-150.0,0.00029642,2]
[322106557,1712781047654,-150.0,0.00029642,2]
[322106560,1712781047665,-833.05,0.00029642,2]
[322106561,1712781047674,-150.0,0.00029642,2]
[322106563,1712781047683,-300.0,0.00029642,2]
[322106565,1712781047692,-153.19,0.00029642,2]
[322106567,1712781047703,-150.0,0.00029642,2]
[322106569,1712781047713,-1000.0,0.000297,2]
[322106572,1712781047722,-6924.06841522,0.000297,2]
[322106574,1712781047732,-698.6493583,0.000298,3]
[322106575,1712781047741,-1260.66987456,0.000298,3]
[322106578,1712781047751,-242.79181014,0.000298,3]
[322106580,1712781047760,-155.0,0.00029877,2]
[322106581,1712781047770,-155.13780993,0.00029877,2]
[322106583,1712781047780,-485.70839377,0.00029878,2]
[322106585,1712781047790,-364.99752473,0.0002988,2]
[322106588,1712781047800,-155.05767173,0.0002988,2]
[322106590,1712781047809,-60221.7498919,0.000299,2]
[322106592,1712781047818,-176.0,0.0002993,13]
[322106605,1712781047946,-2641.66612024,0.0002999,2]
[322106607,1712781047961,-23722.27564431,0.0003,4]
[322106609,1712781047970,-405.59680121,0.0003,4]
[322106611,1712781047979,-19311.62545863,0.0003,4]
[322106613,1712781047988,-6939.13491161,0.0003,2]
[322106615,1712781047997,-420.92700151,0.0003,2]
[322106617,1712781048007,-150.0,0.0003,20]
[322106619,1712781048016,-9719.19260393,0.0003,2]
[322106621,1712781048024,-2221.84004279,0.0003,3]
[322106623,1712781048034,-680.05335095,0.0003,4]
[322106625,1712781048043,-524.0,0.0003041,2]
[322106627,1712781048052,-1335.90737,0.0003079,2]
[322106629,1712781048061,-629.13,0.00030897,2]
[322106630,1712781048070,-490.69655097,0.00031,4]
[322106632,1712781048080,-1410.18918178,0.00031,2]
[322106634,1712781048088,-3602.4085014,0.00031,2]
[322106636,1712781048098,-51657.83927769,0.00031,2]
[322106671,1712781048424,-32789.94116566,0.00031,2]
[322106674,1712781048434,-35822.70829511,0.00031,2]
[322106675,1712781048443,-18000.0,0.00031,3]
[322106677,1712781048452,-500.0,0.00031,3]
[322106679,1712781048461,-265.739231,0.00031,7]
[322106681,1712781048471,-265.739231,0.00031,7]
[322106683,1712781048480,-151.0,0.00031,7]
[322106685,1712781048489,-27354.20573822,0.000312,2]
[322107090,1712781692094,416.9969135,0.00030001,120]
[322107128,1712782232249,-172.95744951,0.00020466,2]
[322107130,1712782232258,-191.23068901,0.00020467,2]
[322107132,1712782232270,-258.57931099,0.00020467,2]
[322107134,1712782232280,-164.10559287,0.00020598,2]
[322107136,1712782232289,-621.07439266,0.00020698,2]
[322107138,1712782232298,-43.34970665,0.00020699,2]
[322107140,1712782232310,-735.89112827,0.00020699,2]
[322107142,1712782232320,-1000.0,0.00020832,2]
[322107144,1712782232330,-154.82686376,0.00020832,2]
[322107146,1712782232346,-345.17313624,0.00020832,2]
[322107148,1712782232355,-169.41531111,0.00020998,2]
[322107151,1712782232414,-962.23666922,0.00020998,2]
[322107152,1712782232424,-714.96210186,0.00021,2]
[322107153,1712782232433,-250.0,0.00021,3]
[322107154,1712782232442,-2201.79,0.00021858,2]
[322107155,1712782232452,-499.99,0.00021858,2]
[322107156,1712782232462,-562.65039884,0.00022,2]
[322107157,1712782232473,-783.68958544,0.00022,2]
[322107158,1712782232483,-2751.0,0.00022345,2]
[322107159,1712782232493,-250.0,0.00022349,2]
[322107160,1712782232502,-3197.1025239,0.00022351,2]
[322107161,1712782232548,-2881.45068609,0.00022351,2]
[322107162,1712782232560,-4056.15947331,0.00022351,2]
[322107169,1712782237650,-451.57864314,0.00022351,2]
[322107170,1712782237848,-2477.11318423,0.00022351,2]
[322107172,1712782237865,-302.52178472,0.00022351,2]
[322107173,1712782237878,-1544.78370461,0.00022351,2]
[322107174,1712782237889,-621.49,0.00022364,2]
[322107175,1712782237899,-348.08,0.00022394,2]
[322107176,1712782237909,-250.0,0.00022395,2]
[322107177,1712782237919,-250.0,0.00022449,2]
[322107178,1712782237928,-240.12,0.00022477,2]
[322107179,1712782237938,-359.37118937,0.00022662,2]
[322107180,1712782237950,-500.33163713,0.00022662,2]
[322107181,1712782237962,-745.1671735,0.00022662,2]
[322107182,1712782237971,-449.81,0.00022731,2]
[322107183,1712782237981,-157.041105,0.00022748,2]
[322107184,1712782237995,-1270.358,0.00022908,2]
[322107185,1712782238004,-150.0,0.00022908,2]
[322107186,1712782238014,-1184.344,0.00022908,2]
[322107187,1712782238023,-354.0,0.00022908,2]
[322107192,1712782238143,-214.0,0.00022908,2]
[322107194,1712782238153,-300.0,0.00023,3]
[322107196,1712782238162,-155.0,0.00023,2]
[322107198,1712782238171,-307.07035254,0.00023,2]
[322107200,1712782238180,-155.0,0.00023,2]
[322107202,1712782238189,-314.041105,0.00023448,2]
[322107204,1712782238198,-359.07,0.00023573,2]
[322107206,1712782238207,-359.07,0.00023579,2]
[322107208,1712782238216,-359.07,0.00023586,2]
[322107210,1712782238225,-359.07,0.00023592,2]
[322107212,1712782238234,-359.07,0.00023598,2]
[322107214,1712782238243,-359.07,0.00023604,2]
[322107216,1712782238252,-359.07,0.0002361,2]
[322107218,1712782238261,-359.07,0.00023617,2]
[322107220,1712782238271,-359.07,0.00023623,2]
[322107222,1712782238280,-359.07,0.00023629,2]
[322107224,1712782238289,-359.07,0.00023635,2]
[322107226,1712782238298,-359.07,0.00023641,2]
[322107228,1712782238307,-359.07,0.00023648,2]
[322107229,1712782238318,-359.07,0.00023654,2]
[322107232,1712782238328,-359.07,0.0002366,2]
[322107233,1712782238337,-359.07,0.00023666,2]
[322107235,1712782238346,-359.07,0.00023672,2]
[322107237,1712782238355,-359.07,0.00023679,2]
[322107238,1712782238364,-359.07,0.00023685,2]
[322107239,1712782238373,-359.07,0.00023691,2]
[322107240,1712782238382,-2483.57951581,0.000237,2]
[322107241,1712782238459,-532.80490575,0.000237,2]
[322107242,1712782238472,-4473.56207737,0.000237,2]
[322107243,1712782238514,-690.84238113,0.000237,2]
[322107244,1712782238609,-3279.76224631,0.000237,2]
[322107245,1712782238620,-823.4450615,0.000237,2]
[322107246,1712782238632,-5208.92676619,0.000237,2]
[322107248,1712782239913,-1967.14111745,0.000237,2]
[322107249,1712782239922,-314.041105,0.00023748,3]
[322107250,1712782239931,-157.041105,0.00023748,2]
[322107251,1712782239941,-224.62727988,0.00024,2]
[322107252,1712782239950,-454.58628101,0.00024,2]
[322107253,1712782239959,-200.0,0.00024205,2]
[322107254,1712782239969,-303.37987086,0.00024448,3]
[322107257,1712782242860,-10.66123414,0.00024448,3]
[322107258,1712782242879,-2500.0,0.0002449,2]
[322107259,1712782242898,-180.0,0.00024545,2]
[322107260,1712782242915,-1133.89419759,0.0002459,2]
[322107261,1712782242940,-4067.33229788,0.0002459,2]
[322107262,1712782242964,-4099.96640809,0.0002459,2]
[322107263,1712782242984,-235698.80709644,0.0002459,2]
[322107264,1712782243005,-1378.59640072,0.00024688,2]
[322107265,1712782243020,-5990.14063102,0.00024689,2]
[322107266,1712782243047,-149089.15696195,0.0002469,5]
[322107267,1712782243080,-162.64154019,0.00024733,2]
[322107268,1712782243102,-314.041105,0.00024748,4]
[322107269,1712782243115,-157.041105,0.00024748,2]
[322107270,1712782243133,-2223.73711434,0.000248,2]
[322107271,1712782243154,-449.81,0.00024995,2]
[322107272,1712782243166,-4997.17281266,0.00025,2]
[322107273,1712782243190,-221.089637,0.00025,2]
[322107274,1712782243208,-350.0,0.00025,3]
[322107275,1712782243224,-181.65261744,0.00025,2]
[322107276,1712782243241,-621.49,0.00025103,2]
[322107277,1712782243257,-250.0,0.00025354,2]
[322107278,1712782243273,-314.041105,0.00025448,4]
[322107279,1712782243289,-172.92,0.00025625,2]
[322107280,1712782243305,-314.041105,0.00025748,5]
[322107281,1712782243322,-157.041105,0.00025748,2]
[322107283,1712782243337,-200.0,0.00025891,2]
[322107285,1712782243352,-1000.0,0.00025891,2]
[322107288,1712782243368,-500.0,0.00025891,2]
[322107291,1712782243382,-354.0,0.00025908,2]
[322107293,1712782243397,-214.0,0.00025908,2]
[322107296,1712782243412,-500000.0,0.00026,2]
[322107299,1712782243429,-155.0,0.00026,2]
[322107302,1712782243449,-314.041105,0.00026448,5]
[322107305,1712782243467,-314.041105,0.00026748,4]
[322107308,1712782243485,-157.041105,0.00026748,3]
[322107311,1712782243502,-1000.0,0.00027,2]
[322107314,1712782243518,-400.0,0.00027,3]
[322107316,1712782243533,-449.81,0.00027259,2]
[322107319,1712782243549,-151.55,0.00027397,2]
[322107322,1712782243563,-298.67,0.00027397,2]
[322107324,1712782243579,-314.041105,0.00027448,4]
[322107327,1712782243593,-314.041105,0.00027748,4]
[322107330,1712782243608,-157.041105,0.00027748,3]
[322107332,1712782243622,-1000.0,0.00027776,2]
[322107335,1712782243637,-621.49,0.00027843,2]
[322107338,1712782243652,-314.041105,0.00028448,4]
[322107340,1712782243666,-267.33961509,0.00028498,2]
[322107344,1712782243687,-500.0,0.00028498,2]
[322107347,1712782243705,-246.78799994,0.00028498,2]
[322107349,1712782243722,-1471.26976529,0.00028501,2]
[322107352,1712782243738,-314.041105,0.00028748,5]
[322107355,1712782243754,-157.041105,0.00028748,3]
[322107358,1712782243768,-354.0,0.00028908,2]
[322107360,1712782243784,-214.0,0.00028908,2]
[322107363,1712782243799,-6744.92204359,0.00029,2]
[322107366,1712782243814,-450.0,0.00029,3]
[322107368,1712782243830,-152.94150958,0.00029348,2]
[322107371,1712782243845,-628.041105,0.00029448,3]
[322107373,1712782243858,-441.77418907,0.000295,3]
[322107376,1712782243873,-449.81,0.00029523,2]
[322107378,1712782243887,-628.041105,0.00029548,4]
[322107381,1712782243901,-628.041105,0.00029648,5]
[322107384,1712782243922,-628.041105,0.00029748,6]
[322107387,1712782243938,-314.041105,0.00029748,6]
[322107389,1712782243951,-157.041105,0.00029748,4]
[322107392,1712782243961,-628.041105,0.00029848,7]
[322107394,1712782243971,-349.0,0.00029899,5]
[322107416,1712782244166,-10554.16180738,0.00029899,2]
[322107418,1712782244175,-1000.0,0.00029899,2]
[322107420,1712782244185,-339764.05196123,0.000299,2]
[322107422,1712782244194,-465.47556991,0.00029999,7]